[Event "44th Chess Olympiad Open 2022"]
[Site "Chennai"]
[Date "2022.08.05"]
[Round "7.13"]
[White "Moranda, Wojciech"]
[Black "Gomez, John Paul"]
[Result "1/2-1/2"]
[ECO "C67"]
[WhiteElo "2636"]
[BlackElo "2451"]
[Annotator "RC"]
[PlyCount "62"]
[EventDate "2022.07.29"]
[EventType "team-tourn"]
[EventCountry "IND"]
[SourceTitle "playchess.com"]
[Source "ChessBase"]
[SourceQuality "1"]
[WhiteTeam "Poland"]
[BlackTeam "Philippines"]
[WhiteTeamCountry "POL"]
[BlackTeamCountry "PHI"]
[TimeControl "40/5400+30:1800+30"]

1. e4 {[%emt 0:00:04]} e5 {[%emt 0:00:51]} 2. Nf3 {[%emt 0:00:09]} Nc6 {[%emt 0:00:07]} 3. Bb5 {[%emt 0:00:13]} Nf6 {[%emt 0:00:13]} 4. O-O {[%emt 0:00:12]} Nxe4 {[%emt 0:00:11]} 5. Re1 {[%emt 0:00:07]} Nd6 {[%emt 0:00:08]} 6. Nxe5 {[%emt 0:00:08]} Be7 {[%emt 0:00:09]} 7. Bf1 {[%emt 0:00:07]} Nxe5 {[%emt 0:00:09]} 8. Rxe5 {[%emt 0:00:06]} O-O {[%emt 0:00:11]} 9. d4 {[%emt 0:00:05]} Bf6 {[%emt 0:00:11]} 10. Re1 {[%emt 0:00:07]} Re8 {[%emt 0:05:41]} 11. Bf4 {[%emt 0:00:40]} Rxe1 {[%emt 0:03:05]} 12. Qxe1 {[%emt 0:04:24]} Ne8 {[%emt 0:00:16]} 13. Bd3 {[%emt 0:00:17]} d5 {[%emt 0:00:50]} 14. Be5 {[%emt 0:01:06]} g6 {[%emt 0:05:22]} 15. Bxf6 {[%emt 0:00:47]} Nxf6 {[%emt 0:00:08]} 16. Qe5 {[%emt 0:00:11]} Ne8 {[%emt 0:02:44]} 17. Nd2 {[%emt 0:14:30]} Ng7 {[%emt 0:02:54]} 18. Re1 {[%emt 0:15:10]} Bf5 {[%emt 0:08:27]} 19. Bxf5 {[%emt 0:01:20]} Nxf5 {[%emt 0:00:09]} 20. Nf3 {[%emt 0:01:59]} c6 {[%emt 0:10:01]} 21. c3 {[%emt 0:11:05]} f6 {[%emt 0:07:15]} 22. Qe6+ {[%emt 0:03:22]} Kf8 {[%emt 0:02:34]} 23. Nd2 {[%emt 0:08:18]} Rc8 {[%emt 0:07:44]} 24. Nb3 {[%emt 0:03:00]} b6 {[%emt 0:00:58]} 25. Nc1 {[%emt 0:00:53]} Rc7 {[%emt 0:01:26]} 26. Nd3 {[%emt 0:01:14]} Qe7 {[%emt 0:04:43]} 27. Kf1 {[%emt 0:11:39]} Qxe6 {[%emt 0:00:24]} 28. Rxe6 {[%emt 0:00:05]} Kf7 {[%emt 0:00:17]} 29. Re2 {[%emt 0:00:15]} Re7 {[%emt 0:00:47]} 30. Nb4 {[%emt 0:00:57]} Rxe2 {[%emt 0:00:19]} 31. Kxe2 {[%emt 0:00:05]} Ne7 {[%emt 0:00:09]} 1/2-1/2

[Event "44th Chess Olympiad Open 2022"]
[Site "Chennai"]
[Date "2022.08.05"]
[Round "7.13"]
[White "Barcenilla, Rogelio"]
[Black "Piorun, Kacper"]
[Result "1/2-1/2"]
[ECO "A21"]
[WhiteElo "2463"]
[BlackElo "2636"]
[Annotator "ChessBase"]
[PlyCount "77"]
[EventDate "2022.07.29"]
[EventType "team-tourn"]
[EventCountry "IND"]
[SourceTitle "playchess.com"]
[Source "ChessBase"]
[SourceQuality "1"]
[WhiteTeam "Philippines"]
[BlackTeam "Poland"]
[WhiteTeamCountry "PHI"]
[BlackTeamCountry "POL"]
[TimeControl "40/5400+30:1800+30"]

1. c4 {[%emt 0:00:04]} e5 {[%emt 0:00:06]} 2. Nc3 {[%emt 0:00:17]} d6 {[%emt 0:00:19]} 3. g3 {[%emt 0:00:22]} f5 {[%emt 0:00:08]} 4. Bg2 {[%emt 0:00:05]} Nf6 {[%emt 0:00:10]} 5. d3 {[%emt 0:00:16]} Be7 {[%emt 0:00:10]} 6. e3 {[%emt 0:01:22]} O-O {[%emt 0:02:02]} 7. Nge2 {[%emt 0:00:04]} c6 {[%emt 0:00:16]} 8. O-O {[%emt 0:00:57]} Be6 {[%emt 0:00:10]} 9. Rb1 {[%emt 0:01:17]} Nbd7 {[%emt 0:08:21]} 10. b4 {[%emt 0:07:09]} Rc8 {[%emt 0:10:31]} 11. f4 {[%emt 0:05:54]} Qc7 {[%emt 0:02:54]} 12. Bd2 {[%emt 0:01:34]} g6 {[%emt 0:09:36]} 13. Qc2 {[%emt 0:04:08]} d5 {[%emt 0:03:00]} 14. c5 {[%emt 0:13:55]} b6 {[%emt 0:03:26]} 15. Na4 {[%emt 0:03:26]} Bf7 {[%emt 0:03:21]} 16. Rfc1 {[%emt 0:05:47]} Rfe8 {[%emt 0:06:04]} 17. d4 {[%emt 0:07:20]} exf4 {[%emt 0:00:36]} 18. gxf4 {[%emt 0:01:49]} Ne4 {[%emt 0:12:15]} 19. Nb2 {[%emt 0:00:51]} bxc5 {[%emt 0:10:13]} 20. bxc5 {[%emt 0:00:35]} Rb8 {[%emt 0:00:47]} 21. Nd3 {[%emt 0:02:54]} Rxb1 {[%emt 0:01:57]} 22. Rxb1 {[%emt 0:01:12]} Rb8 {[%emt 0:00:05]} 23. Be1 {[%emt 0:00:23]} h6 {[%emt 0:04:33]} 24. Rxb8+ {[%emt 0:03:08]} Qxb8 {[%emt 0:00:03]} 25. Qb3 {[%emt 0:00:55]} Qc7 {[%emt 0:00:38]} 26. Ng3 {[%emt 0:03:53]} Kf8 {[%emt 0:03:41]} 27. Kf1 {[%emt 0:03:25]} Bf6 {[%emt 0:01:42]} 28. Qa4 {[%emt 0:05:11]} Qb7 {[%emt 0:00:58]} 29. Qb3 {[%emt 0:01:08]} Qc7 {[%emt 0:00:43]} 30. Qa4 {[%emt 0:00:39]} Be6 {[%emt 0:01:32]} 31. Kg1 {[%emt 0:06:09]} Bd8 {[%emt 0:02:44]} 32. Nf1 {[%emt 0:03:53]} Qb7 {[%emt 0:01:27]} 33. Qb3 {[%emt 0:01:37]} Qc8 {[%emt 0:01:38]} 34. Nd2 {[%emt 0:00:19]} Nxd2 {[%emt 0:01:54]} 35. Bxd2 {[%emt 0:00:06]} Bc7 {[%emt 0:00:17]} 36. Qa4 {[%emt 0:01:10]} Qb7 {[%emt 0:00:06]} 37. Qb3 {[%emt 0:00:15]} Qc8 {[%emt 0:02:23]} 38. Qa4 {[%emt 0:00:06]} Qb7 {[%emt 0:00:04]} 39. Qb3 {[%emt 0:00:06]} 1/2-1/2

[Event "44th Chess Olympiad Open 2022"]
[Site "Chennai"]
[Date "2022.08.05"]
[Round "7.13"]
[White "Laylo, Darwin"]
[Black "Bartel, Mateusz"]
[Result "0-1"]
[ECO "D30"]
[WhiteElo "2432"]
[BlackElo "2597"]
[Annotator "RC"]
[PlyCount "46"]
[EventDate "2022.07.29"]
[EventType "team-tourn"]
[EventCountry "IND"]
[SourceTitle "playchess.com"]
[Source "ChessBase"]
[SourceQuality "1"]
[WhiteTeam "Philippines"]
[BlackTeam "Poland"]
[WhiteTeamCountry "PHI"]
[BlackTeamCountry "POL"]
[TimeControl "40/5400+30:1800+30"]

1. d4 {[%emt 0:00:04]} Nf6 {[%emt 0:00:06]} 2. c4 {[%emt 0:00:34]} e6 {[%emt 0:00:05]} 3. Nf3 {[%emt 0:00:33]} d5 {[%emt 0:00:07]} 4. e3 {[%emt 0:00:43]} Nbd7 {[%emt 0:01:01]} 5. b3 {[%emt 0:01:54]} Ne4 {[%emt 0:07:17]} 6. Nbd2 {[%emt 0:06:26]} f5 {[%emt 0:01:17]} 7. Bb2 {[%emt 0:04:51]} Qf6 {[%emt 0:06:51]} 8. Qc2 {[%emt 0:10:42]} c6 {[%emt 0:00:59]} 9. c5 {[%emt 0:07:45]} g5 {[%emt 0:00:23]} 10. Be2 {[%emt 0:05:38]} g4 {[%emt 0:10:02]} 11. Nxe4 {[%emt 0:05:10]} fxe4 {[%emt 0:00:07]} 12. Ne5 {[%emt 0:00:20]} Nxe5 {[%emt 0:01:21]} 13. dxe5 {[%emt 0:00:02]} Qg5 {[%emt 0:00:09]} 14. Qc3 {[%emt 0:22:25]} Bd7 {[%emt 0:04:20]} 15. h3 {[%emt 0:12:47]} g3 {[%emt 0:12:15]} 16. O-O {[%emt 0:03:19]} gxf2+ {[%emt 0:01:52]} 17. Rxf2 {[%emt 0:00:02]} O-O-O {[%emt 0:00:09]} 18. Qa5 {[%emt 0:09:40]} Qxe3 {[%emt 0:06:41]} 19. b4 {[%emt 0:00:29]} Be7 {[%emt 0:00:44]} 20. Qxa7 {[%emt 0:06:05]} Rdf8 {[%emt 0:00:21]} 21. Ba6 {[%emt 0:00:55]} Qxf2+ {[%emt 0:00:45]} 22. Kh1 {[%emt 0:00:01]} bxa6 {[%emt 0:01:02]} 23. Qxa6+ {[%emt 0:00:41]} Kd8 {[%emt 0:00:07]} 0-1

[Event "44th Chess Olympiad Open 2022"]
[Site "Chennai"]
[Date "2022.08.05"]
[Round "7.14"]
[White "Saric, Ivan"]
[Black "Batsuren, Dambasuren"]
[Result "1-0"]
[ECO "B12"]
[WhiteElo "2680"]
[BlackElo "2518"]
[Annotator "RC"]
[PlyCount "69"]
[EventDate "2022.07.29"]
[EventType "team-tourn"]
[EventCountry "IND"]
[SourceTitle "playchess.com"]
[Source "ChessBase"]
[SourceQuality "1"]
[WhiteTeam "Croatia"]
[BlackTeam "Mongolia"]
[WhiteTeamCountry "CRO"]
[BlackTeamCountry "MGL"]
[TimeControl "40/5400+30:1800+30"]

1. e4 {[%emt 0:00:02]} c6 {[%emt 0:00:12]} 2. d4 {[%emt 0:00:05]} d5 {[%emt 0:00:07]} 3. e5 {[%emt 0:00:03]} Bf5 {[%emt 0:00:08]} 4. Nf3 {[%emt 0:00:10]} e6 {[%emt 0:00:15]} 5. Be2 {[%emt 0:00:05]} Ne7 {[%emt 0:00:17]} 6. O-O {[%emt 0:00:36]} Ng6 {[%emt 0:00:18]} 7. Ne1 {[%emt 0:04:28]} h5 {[%emt 0:00:19]} 8. c3 {[%emt 0:05:34]} c5 {[%emt 0:00:35]} 9. a3 {[%emt 0:07:15]} Nc6 {[%emt 0:11:42]} 10. b4 {[%emt 0:00:31]} cxd4 {[%emt 0:01:02]} 11. cxd4 {[%emt 0:00:04]} f6 {[%emt 0:04:57]} 12. b5 {[%emt 0:16:39]} Na5 {[%emt 0:00:44]} 13. Bd3 {[%emt 0:00:04]} Bxd3 {[%emt 0:13:33]} 14. Qxd3 {[%emt 0:01:09]} Kf7 {[%emt 0:07:05]} 15. Nf3 {[%emt 0:02:21]} Nc4 {[%emt 0:02:56]} 16. Nbd2 {[%emt 0:07:01]} Rc8 {[%emt 0:00:54]} 17. Re1 {[%emt 0:04:32]} Qd7 {[%emt 0:01:15]} 18. Rb1 {[%emt 0:05:06]} Be7 {[%emt 0:02:58]} 19. h4 {[%emt 0:04:32]} Rc7 {[%emt 0:11:24]} 20. g3 {[%emt 0:01:53]} Qc8 {[%emt 0:05:01]} 21. exf6 {[%emt 0:05:29]} gxf6 {[%emt 0:00:43]} 22. Nxc4 {[%emt 0:00:04]} Rxc4 {[%emt 0:02:35]} 23. Bd2 {[%emt 0:00:19]} Bd6 {[%emt 0:03:25]} 24. Re3 {[%emt 0:04:53]} Ra4 {[%emt 0:06:05]} 25. Bb4 {[%emt 0:01:32]} Bxb4 {[%emt 0:01:04]} 26. axb4 {[%emt 0:00:04]} Qc4 {[%emt 0:03:01]} 27. Qd1 {[%emt 0:07:03]} Qa2 {[%emt 0:17:50]} 28. Rc1 {[%emt 0:07:05]} Ne7 {[%emt 0:00:25]} 29. Qe1 {[%emt 0:01:11]} Rc8 {[%emt 0:00:31]} 30. Ng5+ {[%emt 0:07:05]} fxg5 {[%emt 0:00:48]} 31. Rf3+ {[%emt 0:00:04]} Ke8 {[%emt 0:02:26]} 32. Rxc8+ {[%emt 0:00:05]} Kd7 {[%emt 0:01:20]} 33. Rc1 {[%emt 0:00:25]} Nf5 {[%emt 0:00:33]} 34. Rxf5 {[%emt 0:00:36]} exf5 {[%emt 0:00:03]} 35. Qe5 {[%emt 0:00:06]} 1-0

[Event "44th Chess Olympiad Open 2022"]
[Site "Chennai"]
[Date "2022.08.05"]
[Round "7.14"]
[White "Kozul, Zdenko"]
[Black "Gundavaa, Bayarsaikhan"]
[Result "0-1"]
[ECO "D38"]
[WhiteElo "2602"]
[BlackElo "2503"]
[Annotator "ChessBase"]
[PlyCount "82"]
[EventDate "2022.07.29"]
[EventType "team-tourn"]
[EventCountry "IND"]
[SourceTitle "playchess.com"]
[Source "ChessBase"]
[SourceQuality "1"]
[WhiteTeam "Croatia"]
[BlackTeam "Mongolia"]
[WhiteTeamCountry "CRO"]
[BlackTeamCountry "MGL"]
[TimeControl "40/5400+30:1800+30"]

1. d4 {[%emt 0:00:08]} Nf6 {[%emt 0:00:10]} 2. c4 {[%emt 0:00:11]} e6 {[%emt 0:00:05]} 3. Nf3 {[%emt 0:02:10]} d5 {[%emt 0:00:04]} 4. Nc3 {[%emt 0:02:20]} Bb4 {[%emt 0:00:17]} 5. Bg5 {[%emt 0:00:58]} h6 {[%emt 0:00:06]} 6. Bxf6 {[%emt 0:00:51]} Qxf6 {[%emt 0:00:04]} 7. e3 {[%emt 0:00:13]} O-O {[%emt 0:00:23]} 8. Rc1 {[%emt 0:00:16]} Nc6 {[%emt 0:00:06]} 9. cxd5 {[%emt 0:14:05]} exd5 {[%emt 0:00:11]} 10. a3 {[%emt 0:00:04]} Bxc3+ {[%emt 0:01:28]} 11. Rxc3 {[%emt 0:00:06]} Ne7 {[%emt 0:02:00]} 12. b4 {[%emt 0:02:29]} a6 {[%emt 0:05:03]} 13. Ne5 {[%emt 0:05:11]} c6 {[%emt 0:03:37]} 14. Bd3 {[%emt 0:00:36]} Bf5 {[%emt 0:03:25]} 15. a4 {[%emt 0:13:14]} Bxd3 {[%emt 0:02:15]} 16. Qxd3 {[%emt 0:01:04]} Qe6 {[%emt 0:00:09]} 17. O-O {[%emt 0:00:37]} Rfc8 {[%emt 0:00:42]} 18. Rfc1 {[%emt 0:01:12]} Nf5 {[%emt 0:00:15]} 19. Qb1 {[%emt 0:25:34]} Nd6 {[%emt 0:00:56]} 20. h3 {[%emt 0:00:15]} Re8 {[%emt 0:04:05]} 21. Rb3 {[%emt 0:00:35]} Nc4 {[%emt 0:27:54]} 22. Nxc4 {[%emt 0:01:23]} dxc4 {[%emt 0:00:07]} 23. Ra3 {[%emt 0:00:07]} b5 {[%emt 0:00:33]} 24. Qb2 {[%emt 0:01:08]} Qd6 {[%emt 0:02:15]} 25. Rca1 {[%emt 0:00:26]} Re6 {[%emt 0:04:02]} 26. f3 {[%emt 0:11:58]} f5 {[%emt 0:03:04]} 27. h4 {[%emt 0:03:49]} Rae8 {[%emt 0:05:07]} 28. axb5 {[%emt 0:00:44]} axb5 {[%emt 0:00:53]} 29. Qd2 {[%emt 0:06:18]} Qe7 {[%emt 0:03:50]} 30. h5 {[%emt 0:05:06]} Rxe3 {[%emt 0:06:25]} 31. Rxe3 {[%emt 0:00:32]} Qxe3+ {[%emt 0:00:10]} 32. Qxe3 {[%emt 0:00:05]} Rxe3 {[%emt 0:00:04]} 33. Ra6 {[%emt 0:00:07]} Rb3 {[%emt 0:00:54]} 34. Rxc6 {[%emt 0:00:47]} Rxb4 {[%emt 0:00:34]} 35. Rc7 {[%emt 0:02:15]} Rb2 {[%emt 0:03:05]} 36. d5 {[%emt 0:00:54]} Kf8 {[%emt 0:00:13]} 37. Kf1 {[%emt 0:00:20]} Rd2 {[%emt 0:04:43]} 38. Rc5 {[%emt 0:00:44]} b4 {[%emt 0:00:24]} 39. Ke1 {[%emt 0:00:21]} c3 {[%emt 0:01:14]} 40. Rc4 {[%emt 0:00:41]} Rxg2 {[%emt 0:02:31]} 41. Rxb4 {[%emt 0:01:25]} Rg1+ {[%emt 0:02:34]} 0-1

[Event "44th Chess Olympiad Open 2022"]
[Site "Chennai"]
[Date "2022.08.05"]
[Round "7.14"]
[White "Bilguun, Sumiya"]
[Black "Bosiocic, Marin"]
[Result "0-1"]
[ECO "B30"]
[WhiteElo "2463"]
[BlackElo "2549"]
[Annotator "ChessBase"]
[PlyCount "76"]
[EventDate "2022.07.29"]
[EventType "team-tourn"]
[EventCountry "IND"]
[SourceTitle "playchess.com"]
[Source "ChessBase"]
[SourceQuality "1"]
[WhiteTeam "Mongolia"]
[BlackTeam "Croatia"]
[WhiteTeamCountry "MGL"]
[BlackTeamCountry "CRO"]
[TimeControl "40/5400+30:1800+30"]

1. e4 {[%emt 0:00:04]} c5 {[%emt 0:00:27]} 2. Nc3 {[%emt 0:00:29]} Nc6 {[%emt 0:00:15]} 3. Bb5 {[%emt 0:00:14]} Nd4 {[%emt 0:01:24]} 4. Nf3 {[%emt 0:00:09]} e6 {[%emt 0:00:23]} 5. O-O {[%emt 0:00:09]} a6 {[%emt 0:00:12]} 6. Bd3 {[%emt 0:00:04]} Nc6 {[%emt 0:00:54]} 7. b3 {[%emt 0:00:28]} g6 {[%emt 0:04:54]} 8. e5 {[%emt 0:06:39]} Bg7 {[%emt 0:01:08]} 9. Re1 {[%emt 0:02:05]} d5 {[%emt 0:03:06]} 10. exd6 {[%emt 0:03:25]} Nf6 {[%emt 0:02:02]} 11. Ba3 {[%emt 0:14:37]} b6 {[%emt 0:16:18]} 12. Ne4 {[%emt 0:08:39]} Bb7 {[%emt 0:04:24]} 13. Nxf6+ {[%emt 0:19:29]} Qxf6 {[%emt 0:01:45]} 14. c3 {[%emt 0:02:22]} Na7 {[%emt 0:08:29]} 15. d7+ {[%emt 0:13:21]} Kxd7 {[%emt 0:02:48]} 16. Ne5+ {[%emt 0:00:16]} Ke7 {[%emt 0:08:41]} 17. b4 {[%emt 0:03:03]} Nb5 {[%emt 0:05:38]} 18. bxc5 {[%emt 0:01:08]} Bxg2 {[%emt 0:04:05]} 19. Bxb5 {[%emt 0:07:14]} axb5 {[%emt 0:01:16]} 20. Bb4 {[%emt 0:01:04]} Bd5 {[%emt 0:01:34]} 21. cxb6+ {[%emt 0:00:03]} Kd8 {[%emt 0:06:00]} 22. Qg4 {[%emt 0:00:28]} h5 {[%emt 0:02:38]} 23. Qg3 {[%emt 0:04:34]} h4 {[%emt 0:03:28]} 24. Qg4 {[%emt 0:02:43]} Rh5 {[%emt 0:01:11]} 25. f4 {[%emt 0:04:33]} Rf5 {[%emt 0:01:38]} 26. Bd6 {[%emt 0:00:56]} Kc8 {[%emt 0:06:04]} 27. Nf3 {[%emt 0:02:35]} Qd8 {[%emt 0:01:19]} 28. Bc7 {[%emt 0:00:25]} Qe7 {[%emt 0:00:08]} 29. Be5 {[%emt 0:01:26]} Bxe5 {[%emt 0:01:28]} 30. Rxe5 {[%emt 0:01:20]} Ra4 {[%emt 0:02:33]} 31. Nd4 {[%emt 0:00:21]} Qc5 {[%emt 0:00:46]} 32. Re3 {[%emt 0:00:36]} Rxd4 {[%emt 0:01:58]} 33. cxd4 {[%emt 0:00:15]} Qxd4 {[%emt 0:00:05]} 34. Rc1+ {[%emt 0:00:21]} Bc4 {[%emt 0:00:05]} 35. Qf3 {[%emt 0:01:19]} Rxf4 {[%emt 0:00:33]} 36. Qc6+ {[%emt 0:00:26]} Kd8 {[%emt 0:00:02]} 37. Rxc4 {[%emt 0:00:45]} bxc4 {[%emt 0:00:17]} 38. b7 {[%emt 0:00:44]} Qa1+ {[%emt 0:00:20]} 0-1

[Event "44th Chess Olympiad Open 2022"]
[Site "Chennai"]
[Date "2022.08.05"]
[Round "7.14"]
[White "Amartuvshin, Ganzorig"]
[Black "Brkic, Ante"]
[Result "0-1"]
[ECO "D39"]
[WhiteElo "2409"]
[BlackElo "2611"]
[Annotator "ChessBase"]
[PlyCount "78"]
[EventDate "2022.07.29"]
[EventType "team-tourn"]
[EventCountry "IND"]
[SourceTitle "playchess.com"]
[Source "ChessBase"]
[SourceQuality "1"]
[WhiteTeam "Mongolia"]
[BlackTeam "Croatia"]
[WhiteTeamCountry "MGL"]
[BlackTeamCountry "CRO"]
[TimeControl "40/5400+30:1800+30"]

1. d4 {[%emt 0:00:05]} Nf6 {[%emt 0:00:10]} 2. c4 {[%emt 0:00:07]} e6 {[%emt 0:00:08]} 3. Nf3 {[%emt 0:00:06]} d5 {[%emt 0:00:06]} 4. Nc3 {[%emt 0:00:06]} Bb4 {[%emt 0:00:38]} 5. Bg5 {[%emt 0:00:20]} dxc4 {[%emt 0:02:18]} 6. a3 {[%emt 0:01:24]} Bxc3+ {[%emt 0:00:25]} 7. bxc3 {[%emt 0:00:09]} Nbd7 {[%emt 0:02:04]} 8. Qa4 {[%emt 0:14:29]} a6 {[%emt 0:23:19]} 9. Qxc4 {[%emt 0:01:48]} b5 {[%emt 0:00:23]} 10. Qd3 {[%emt 0:30:13]} Bb7 {[%emt 0:00:54]} 11. Nd2 {[%emt 0:01:56]} h6 {[%emt 0:07:02]} 12. Bh4 {[%emt 0:01:21]} c5 {[%emt 0:02:46]} 13. e4 {[%emt 0:00:49]} cxd4 {[%emt 0:04:16]} 14. cxd4 {[%emt 0:00:23]} Qa5 {[%emt 0:00:28]} 15. f3 {[%emt 0:03:50]} Rc8 {[%emt 0:00:17]} 16. Be2 {[%emt 0:03:57]} Nh5 {[%emt 0:19:30]} 17. O-O {[%emt 0:09:31]} Nf4 {[%emt 0:00:14]} 18. Qe3 {[%emt 0:00:10]} g5 {[%emt 0:00:28]} 19. Bg3 {[%emt 0:01:14]} Rc3 {[%emt 0:04:59]} 20. Qf2 {[%emt 0:00:53]} Rxa3 {[%emt 0:09:00]} 21. Nb3 {[%emt 0:04:45]} Qb4 {[%emt 0:03:36]} 22. Rxa3 {[%emt 0:00:38]} Qxa3 {[%emt 0:00:18]} 23. Bd1 {[%emt 0:00:11]} Qd6 {[%emt 0:03:51]} 24. Qe3 {[%emt 0:10:49]} O-O {[%emt 0:00:03]} 25. e5 {[%emt 0:01:03]} Qe7 {[%emt 0:00:02]} 26. h4 {[%emt 0:02:09]} f5 {[%emt 0:06:21]} 27. exf6 {[%emt 0:04:09]} Qxf6 {[%emt 0:00:32]} 28. hxg5 {[%emt 0:00:11]} hxg5 {[%emt 0:00:18]} 29. Bc2 {[%emt 0:01:21]} Nb6 {[%emt 0:02:43]} 30. Bxf4 {[%emt 0:03:21]} gxf4 {[%emt 0:00:11]} 31. Qd3 {[%emt 0:00:12]} Rf7 {[%emt 0:00:30]} 32. Nc5 {[%emt 0:00:23]} Bd5 {[%emt 0:00:09]} 33. Ra1 {[%emt 0:00:35]} Rg7 {[%emt 0:02:13]} 34. Rxa6 {[%emt 0:01:09]} Nc4 {[%emt 0:00:07]} 35. Nxe6 {[%emt 0:02:31]} Bxe6 {[%emt 0:01:11]} 36. d5 {[%emt 0:01:11]} Rxg2+ {[%emt 0:03:01]} 37. Kxg2 {[%emt 0:00:03]} Ne3+ {[%emt 0:00:13]} 38. Qxe3 {[%emt 0:00:55]} fxe3 {[%emt 0:01:35]} 39. Rxe6 {[%emt 0:00:31]} Qc3 {[%emt 0:00:55]} 0-1